{"text_format":"3","workbook":"xlsx","n_sheets":5,"sheets":["Информация о Чемпионате","Общая инфраструктура","Рабочее место конкурсантов","Расходные материалы","Личный инструмент участника"],"read":"whole","date_system":"1900"}

{"sheet":"Информация о Чемпионате","index":0,"n_rows":23,"n_cols":2,"rows_kept":23}
[]
[]
["Компетенция","Банковское дело"]
["Наименование этапа Чемпионата","Региональный этап Чемпионата по профессиональному мастерству \"Профессионалы\" 2026"]
["Субъект РФ (регион проведения)","Республика Карелия"]
["Базовая организация расположения конкурсной площадки","Частное профессиональное образовательное учреждение Петрозаводский кооперативный техникум Карелреспотребсоюза"]
["Адрес конкурсной площадки","г. Петрозаводск, пр. Первомайский, 1а"]
["Даты проведения"," 16.02.2026-20.02.2026"]
["Главный эксперт","Воронецкая Любовь Алексеевна"]
["Электронная почта ГЭ","vorolyubov@yandex.ru"]
["Моб.телефон ГЭ","8-921-450-62-32"]
["Технический администратор площадки","Шидерская Ольга Сергеевна "]
["Электронная почта ТАП","olgashiderskaya@gmail.com"]
["Моб.телефон ТАП","8-921-702-13-79"]
["Количество конкурсантов ",6]
["Количество рабочих мест",6]
["Количество экспертов (ГЭ+ЭН+ИЭ)+ТАП",9]
[]
[]
["ЭН - эксперт-наставник"]
["ГЭ - главный эксперт"]
["ИЭ - индустриальный эксперт"]
["ТАП - технический администратор площадки"]

{"sheet":"Общая инфраструктура","index":1,"n_rows":115,"n_cols":8,"rows_kept":115,"merged":[[0,0,0,7],[1,0,1,7],[2,0,2,7],[3,0,3,7],[4,0,4,7],[5,0,5,7],[6,0,6,7],[7,0,7,7],[8,0,8,7],[9,0,9,1],[9,2,9,7],[10,0,10,7],[11,0,11,7],[12,0,12,7],[13,0,13,7],[14,0,14,7],[15,0,15,7],[16,0,16,7],[17,0,17,7],[18,0,18,7],[19,0,19,7],[20,0,20,7],[31,0,31,7],[32,0,32,7],[33,0,33,7],[34,0,34,7],[35,0,35,7],[36,0,36,7],[37,0,37,7],[38,0,38,7],[39,0,39,7],[40,0,40,7],[46,0,46,7],[47,0,47,7],[48,0,48,7],[49,0,49,7],[50,0,50,7],[51,0,51,7],[52,0,52,7],[53,0,53,7],[54,0,54,7],[55,0,55,7],[68,0,68,7],[69,0,69,7],[70,0,70,7],[71,0,71,7],[72,0,72,7],[73,0,73,7],[74,0,74,7],[75,0,75,7],[76,0,76,7],[77,0,77,7],[94,0,94,7],[101,0,101,7],[102,0,102,7],[103,0,103,7],[104,0,104,7],[105,0,105,7],[106,0,106,7],[107,0,107,7],[108,0,108,7],[109,0,109,7],[110,0,110,7]]}
["Инфраструктурный лист для оснащения конкурсной площадки Чемпионата (Региональный этап)\nБанковское дело"]
["Основная информация о конкурсной площадке:"]
["Субъект Российской Федерации: Республика Карелия"]
["Базовая организация расположения конкурсной площадки: Частное профессиональное образовательное учреждение Петрозаводский кооперативный техникум Карелреспотребсоюза"]
["Адрес базовой организации: г. Петрозаводск, пр. Первомайский, 1а"]
["Главный эксперт: Воронецкая Любовь Алексеевна, 89214506232, vorolyubov@yandex.ru"]
["Технический эксперт: Шидерская Ольга Сергеевна, 89217021379, olgashiderskaya@gmail.com"]
["Количество экспертов (в том числе с главным экспертом): 9"]
["Количество конкурсантов (команд): 6"]
["Количество рабочих мест: 6"]
["Даты проведения: 16.02.2026-20.02.2026"]
["Общая зона конкурсной площадки (оборудование, инструмент, мебель, канцелярия)"]
["Требования к обеспечению зоны (коммуникации, площадь, сети, количество рабочих мест и др.): "]
["Площадь зоны: не менее 120 кв.м."]
["Освещение: Допустимо верхнее искусственное освещение ( не менее 300 люкс) "]
["Интернет : Подключение  ноутбуков к беспроводному интернету (с возможностью подключения к проводному интернету) \t"]
["Электричество: количество подключений к сети  по (220 Вольт и 380 Вольт)\t пропорционально общему количеству участников "]
["Контур заземления для электропитания и сети слаботочных подключений (при необходимости) : не требуется"]
["Покрытие пола: ковролин, паркетное, плиточное покрытие или линолеум"]
["Подведение/ отведение ГХВС (при необходимости) : не требуется"]
["Подведение сжатого воздуха (при необходимости): не требуется"]
["№","Наименование ","Краткие (рамочные) технические характеристики","Вид","Количество","Единица измерения","Итоговое количество","Рекомендации представителей индустрии (указывается конкретное оборудование)"]
[1,"Офисный стол","Стол офисный размером глубина 600 мм., длина 800 мм., темная или светлая поверхность столешницы","Мебель",1,"шт",6]
[2,"Стул","На колесиках, с подлокотниками темная обивка,\nрассчитан на вес не менее 100 кг, либо на ножках (для брифинг-зоны)","Мебель",1,"шт",6]
[3,"Мусорная корзина","критически важные характеристики позиции отсутствуют","Принадлежности",1,"шт",{"$f":"E25","v":1}]
[4,"Персональный компьютер (системный блок)","Процессор минимум 2-х ядерный, 4 Гб RAM, 512 Гб HDD, ОС Windows 10 (или аналог). Возможна замена на ноутбук или моноблок.","Оборудование IT",1,"шт",6]
[5,"Монитор","ЖК с диагональю не менее 18.5\" (если не используется ноутбук или моноблок)","Оборудование IT",1,"шт",6]
[6,"Клавиатура ","Проводная полноразмерная клавиатура для ПК (если не используется ноутбук или моноблок)","Оборудование IT",1,"шт",6]
[7,"Компьютерная мышь","Оптическая проводная (или беспроводная) минимум 2-х кнопочная мышь","Оборудование IT",1,"шт",6]
[8,"Коврик для мыши","критически важные характеристики позиции отсутствуют (при необходимости)","Оборудование IT",1,"шт",6]
[9,"Видеокамера","критически важные характеристики позиции отсутствуют (со звуком)","Оборудование IT",1,"шт",{"$f":"E31","v":1}]
["Комната Конкурсантов (по количеству конкурсантов)"]
["Требования к обеспечению зоны (коммуникации, площадь, сети, количество рабочих мест и др.): "]
["Площадь зоны: не менее 30 кв.м."]
["Освещение: Допустимо верхнее искусственное освещение ( не менее 300 люкс)"]
["Интернет : Подключение  ноутбуков к беспроводному интернету (с возможностью подключения к проводному интернету) \t"]
["Электричество: подключения к сети  по (220 Вольт и 380 Вольт)\t не требуется"]
["Контур заземления для электропитания и сети слаботочных подключений (при необходимости) : не требуется"]
["Покрытие пола: ковролин, паркетное, плиточное покрытие, ламинат или линолеум"]
["Подведение/ отведение ГХВС (при необходимости) : не требуется"]
["Подведение сжатого воздуха (при необходимости): не требуется"]
["№","Наименование ","Краткие (рамочные) технические характеристики","Вид","Количество","Единица измерения","Итоговое количество","Рекомендации представителей индустрии (указывается конкретное оборудование)"]
[1,"Стол ","Стол офисный размером глубина 600 мм., длина 800 мм., темная или светлая поверхность столешницы","Мебель",1,"шт (на всех конкурсантов",6]
[2,"Стул ","на колесиках, с подлокотниками темная обивка,\nрассчитан на вес не менее 100 кг, либо на ножках","Мебель",1,"шт (на 1 конкурсанта) ",6]
[3,"Мусорная корзина","критически важные характеристики позиции отсутствуют","Хозяйственные принадлежности",1,"шт (на всех конкурсантов",1]
[4,"Вешалка","критически важные характеристики позиции отсутствуют","Мебель",1,"шт (на всех конкурсантов",1]
["Комната Экспертов (включая Главного эксперта) (по количеству экспертов)"]
["Требования к обеспечению зоны (коммуникации, площадь, сети, количество рабочих мест и др.): "]
["Площадь зоны: не менее 30 кв.м."]
["Освещение: Допустимо верхнее искусственное освещение ( не менее 300 люкс)"]
["Интернет : Подключение  ноутбуков к беспроводному интернету (с возможностью подключения к проводному интернету) \t"]
["Электричество: 4 подключения к сети  по (220 Вольт и 380 Вольт)\t "]
["Контур заземления для электропитания и сети слаботочных подключений (при необходимости) : не требуется"]
["Покрытие пола: ковролин, паркетное, плиточное покрытие, ламинат или линолеум"]
["Подведение/ отведение ГХВС (при необходимости) : не требуется"]
["Подведение сжатого воздуха (при необходимости): не требуется"]
["№","Наименование ","Краткие (рамочные) технические характеристики","Вид","Количество","Единица измерения","Итоговое количество","Рекомендации представителей индустрии (указывается конкретное оборудование)"]
[1,"Персональный компьютер (системный блок)","Процессор минимум 2-х ядерный, 4 Гб RAM, 512 Гб HDD, ОС Windows 10 (или аналог). Возможна замена на ноутбук или моноблок.","Оборудование IT",1,"шт",{"$f":"E58","v":1}]
[2,"Монитор","ЖК с диагональю не менее 18.5\" (если не используется ноутбук или моноблок).","Оборудование IT",1,"шт",{"$f":"E59","v":1}]
[3,"Клавиатура ","Проводная полноразмерная клавиатура для ПК (если не используется ноутбук или моноблок).","Оборудование IT",1,"шт",1]
[4,"Компьютерная мышь","Оптическая проводная (или беспроводная) минимум 2-х кнопочная мышь","Оборудование IT",1,"шт",1]
[5,"Коврик для мыши","критически важные характеристики позиции отсутствуют (при необходимости)","Оборудование IT",1,"шт",1]
[6,"МФУ","Устройство-принтер/сканер/копир с черно-белой печатью, лазерный, размещение- настольный, скорость печати. Возможность сетевого подключения. 20 стр./мин (ч/б А4)","Оборудование IT",1,"шт",1]
[7,"Стол ","Стол офисный размером глубина 600 мм., длина 800 мм., темная или светлая поверхность столешницы","Мебель",5,"шт",8]
[8,"Стул ","на колесиках, с подлокотниками темная обивка,\nрассчитан на вес не менее 100 кг, либо на ножках","Мебель",12,"шт",8]
[9,"Мусорная корзина","критически важные характеристики позиции отсутствуют","Хозяйственные принадлежности",2,"шт",1]
[10,"Вешалка","критически важные характеристики позиции отсутствуют","Мебель",1,"шт",1]
[11,"Шкаф","шкаф для документов, размер 180 см* 80 см","Мебель",1,"шт",1]
["Рабочее место сотрудника банка"]
["Требования к обеспечению зоны (коммуникации, площадь, сети, количество рабочих мест и др.): "]
["Площадь зоны: не менее 5 кв.м."]
["Освещение: Допустимо верхнее искусственное освещение ( не менее 300 люкс) "]
["Интернет : Подключение  ноутбуков к беспроводному интернету (с возможностью подключения к проводному интернету) \t"]
["Электричество: не менее 6 подключений к сети  по (220 Вольт и 380 Вольт)\t "]
["Контур заземления для электропитания и сети слаботочных подключений (при необходимости) : не требуется"]
["Покрытие пола: ковролин, паркетное, плиточное покрытие, ламинат или линолеум"]
["Подведение/ отведение ГХВС (при необходимости) : не требуется"]
["Подведение сжатого воздуха (при необходимости): не требуется"]
["№","Наименование ","Краткие (рамочные) технические характеристики","Вид","Количество","Единица измерения","Итоговое количество","Рекомендации представителей индустрии (указывается конкретное оборудование)"]
[1,"Персональный компьютер (системный блок)","Процессор минимум 2-х ядерный, 4 Гб RAM, 512 Гб HDD, ОС Windows 10 (или аналог). Возможна замена на ноутбук или моноблок.","Оборудование IT",1,"шт",{"$f":"E80","v":1}]
[2,"Монитор","ЖК с диагональю не менее 18.5\" (если не используется ноутбук или моноблок)","Оборудование IT",1,"шт",{"$f":"E81","v":1}]
[3,"Клавиатура ","Проводная полноразмерная клавиатура для ПК (если не используется ноутбук или моноблок)","Оборудование IT",1,"шт",1]
[4,"Компьютерная мышь","Оптическая проводная (или беспроводная) минимум 2-х кнопочная мышь","Оборудование IT",1,"шт",1]
[5,"Коврик для мыши","критически важные характеристики позиции отсутствуют (при необходимости)","Оборудование IT",1,"шт",1]
[6,"МФУ","Устройство-принтер/сканер/копир с черно-белой печатью, лазерный, размещение- настольный, скорость печати 20 стр./мин (ч/б А4)","Оборудование IT",1,"шт",1]
[7,"Счетчик банкнот","Счетчик банкнот для пересчета банкнот различных валют","Оборудование",1,"шт",1]
[8,"Детектор валют","Тип детектора - просмотровый с ультрафиолетовой детекцией, проверка на подлинность любых защищенных документов и печатной продукции","Оборудование",1,"шт",1]
[9,"Проектор ","стационарный, проекционное расстояние 1 - 9.1 м, Световой поток:4000 Лм","Оборудование",1,"шт",1]
[10,"Экран","напольный или настенное-потолочный, цвет белый, диагональ не менее 87\" (для проектора, при необходимости)","Оборудование",1,"шт",1]
[11,"Денежный ящик","ящик  механического типа из металла, оснащённый отделениями для банкнот и  монет (для хранения денежных средств)","Оборудование",1,"шт",1]
[12,"Банкноты, не являющиеся билетами Банка России","категория \"Сувенирные деньги\" (рубли, доллары США, евро), возможно распечатать на принтере, разного номинала.","Расходные материалы",1,"пачка",1]
[13,"Стол ","Стол офисный размером глубина 600 мм., длина 800 мм., темная или светлая поверхность столешницы","Мебель",1,"шт",1]
[14,"Стул ","на колесиках, с подлокотниками темная обивка,\nрассчитан на вес не менее 100 кг, либо на ножках","Мебель",2,"шт",2]
[]
["Охрана труда и техника безопасности"]
["№","Наименование ","Краткие (рамочные) технические характеристики","Вид","Количество","Единица измерения","Итоговое количество","Рекомендации представителей индустрии (указывается конкретное оборудование)"]
[1,"Аптечка","Аптечка первой помощи для оснащения рабочих кабинетов, учреждений и организаций, офисная, футляр из полистирола","Охрана труда",1,"шт",{"$f":"E97","v":1}]
[2,"Огнетушитель","критически важные характеристики позиции отсутствуют","Охрана труда",1,"шт",{"$f":"E98","v":1}]
[3,"Кулер 19 л (холодная/горячая вода)","критически важные характеристики позиции отсутствуют","Охрана труда",1,"шт",{"$f":"E99","v":1}]
[4,"Вода питьевая бутилированная","бутыль для кулера","Расходные материалы",1,"бутыль",{"$f":"E100","v":1}]
[5,"Стаканы для воды","критически важные характеристики позиции отсутствуют","Расходные материалы",50,"шт",50]
["Складское помещение"]
["Требования к обеспечению зоны (коммуникации, площадь, сети, количество рабочих мест и др.): "]
["Площадь зоны: не менее 20 кв.м."]
["Освещение: Допустимо верхнее искусственное освещение ( не менее 300 люкс) "]
["Интернет : Подключение  ноутбуков к беспроводному интернету (с возможностью подключения к проводному интернету) \t"]
["Электричество: подключение к сети  по (220 Вольт и 380 Вольт)\t не требуется"]
["Контур заземления для электропитания и сети слаботочных подключений (при необходимости) : не требуется"]
["Покрытие пола: ковролин, паркетное, плиточное покрытие, ламинат или линолеум"]
["Подведение/ отведение ГХВС (при необходимости) : не требуется"]
["Подведение сжатого воздуха (при необходимости): не требуется"]
["№","Наименование ","Краткие (рамочные) технические характеристики","Вид","Количество","Единица измерения","Итоговое количество","Рекомендации представителей индустрии (указывается конкретное оборудование)"]
[1,"Стол ","Стол офисный размером глубина 600 мм., длина 800 мм., темная или светлая поверхность столешницы","Мебель",1,"шт",1]
[2,"Стул ","на колесиках, с подлокотниками темная обивка,\nрассчитан на вес не менее 100 кг, либо на ножках","Мебель",1,"шт",1]
[3,"Шкаф","шкаф для документов, размер 180 см* 80 см","Мебель",1,"шт",1]

{"sheet":"Рабочее место конкурсантов","index":2,"n_rows":52,"n_cols":8,"rows_kept":52,"merged":[[0,0,0,7],[1,0,1,7],[2,0,2,7],[3,0,3,7],[4,0,4,7],[5,0,5,7],[6,0,6,7],[7,0,7,7],[8,0,8,7],[9,0,9,1],[9,2,9,7],[10,0,10,7],[11,0,11,7],[12,0,12,7],[13,0,13,7],[14,0,14,7],[15,0,15,7],[16,0,16,7],[17,0,17,7],[18,0,18,7],[19,0,19,7],[20,0,20,7],[21,0,21,7],[34,0,34,7],[39,0,39,7],[40,0,40,7],[41,0,41,7],[42,0,42,7],[43,0,43,7],[44,0,44,7],[45,0,45,7],[46,0,46,7],[47,0,47,7],[48,0,48,7],[49,0,49,7]]}
["Инфраструктурный лист для оснащения конкурсной площадки Чемпионата (Региональный этап)\nБанковское дело"]
["Основная информация о конкурсной площадке:"]
["Субъект Российской Федерации: Республика Карелия"]
["Базовая организация расположения конкурсной площадки: Частное профессиональное образовательное учреждение Петрозаводский кооперативный техникум Карелреспотребсоюза"]
["Адрес базовой организации: г. Петрозаводск, пр. Первомайский, 1а"]
["Главный эксперт: Воронецкая Любовь Алексеевна, 89214506232, vorolyubov@yandex.ru"]
["Технический эксперт: Шидерская Ольга Сергеевна, 89217021379, olgashiderskaya@gmail.com"]
["Количество экспертов (в том числе с главным экспертом): 9"]
["Количество конкурсантов (команд): 6"]
["Количество рабочих мест: 6"]
["Даты проведения: 16.02.2026-20.02.2026"]
["1. Зона для работ предусмотренных в Модулях обязательных к выполнению (инвариант)  (6 рабочих мест) "]
["Рабочее место Конкурсанта (основное оборудование, вспомогательное оборудование, инструмент (по количеству рабочих мест)"]
["Требования к обеспечению зоны (коммуникации, площадь, сети, количество рабочих мест и др.): "]
["Площадь зоны: на одно рабочее место участника  - не менее 3,00 кв. м."]
["Освещение: Допустимо верхнее искусственное освещение ( не менее 300 люкс)"]
["Электричество: количество подключений к сети  по (220 Вольт и 380 Вольт)\t соответствует общему количеству участников "]
["Электричество: число подключений к сети  по (220 Вольт и 380 Вольт)\t соответствует количеству участников"]
["Контур заземления для электропитания и сети слаботочных подключений (при необходимости) : не требуется"]
["Покрытие пола: ковролин, паркетное, плиточное покрытие, ламинат или линолеум"]
["Подведение/ отведение ГХВС (при необходимости) : не требуется"]
["Подведение сжатого воздуха (при необходимости): не требуется"]
["№","Наименование ","Краткие (рамочные) технические характеристики","Вид","Количество","Единица измерения","Итоговое количество","Рекомендации представителей индустрии (указывается конкретное оборудование)"]
[1,"Персональный компьютер (системный блок)","Процессор минимум 2-х ядерный, 4 Гб RAM, 512 Гб HDD, ОС Windows 10 (или аналог). Возможна замена на ноутбук или моноблок.","Оборудование IT",1,"шт (на 1 рабочее место)",6]
[2,"Монитор","ЖК с диагональю не меньшее 18.5\" (если не используется ноутбук или моноблок).","Принадлежности",1,"шт (на 1 рабочее место)",6]
[3,"Клавиатура ","Проводная полноразмерная клавиатура для ПК  (если не используется ноутбук или моноблок).","Оборудование IT",1,"шт (на 1 рабочее место)",6]
[4,"Компьютерная мышь","Оптическая проводная (или беспроводная) минимум 2-х кнопочная мышь","Оборудование IT",1,"шт (на 1 рабочее место)",6]
[5,"USB флешка","от 2 Gb","Расходные материалы",1,"шт (на 1 рабочее место)",6]
[6,"Коврик для мыши","критически важные характеристики позиции отсутствуют (при необходимости)","Оборудование IT",1,"шт (на 1 рабочее место)",6]
[7,"МФУ ","Устройство-принтер/сканер/копир с черно-белой печатью, лазерный, размещение- настольный, скорость печати 20 стр./мин (ч/б А4)","Оборудование IT",1,"шт (1 МФУ на 2 участника)",3]
[8,"Пакет офисных программ","приложение, предназначенное для обработки электронной документации на персональном компьютере","ПО",1,"шт (на 1 рабочее место)",6]
[9,"Стол ","Стол офисный размером глубина 600 мм., длина 800 мм., темная или светлая поверхность столешницы","Мебель",1,"шт (на 1 рабочее место)",6]
[10,"Стул ","на колесиках, с подлокотниками темная обивка,\nрассчитан на вес не менее 100 кг, либо на ножках","Мебель",1,"шт (на 1 рабочее место)",6]
[11,"Мусорная корзина","критически важные характеристики позиции отсутствуют","Принадлежности",1,"шт (1 корзина на 2 участника)",3]
["Охрана труда и техника безопасности"]
["№","Наименование ","Краткие (рамочные) технические характеристики","Вид","Количество","Единица измерения","Итоговое количество","Рекомендации представителей индустрии (указывается конкретное оборудование)"]
[1,"Кулер 19 л (холодная/горячая вода)","критически важные характеристики позиции отсутствуют","Охрана труда",1,"шт",1]
[2,"Вода питьевая бутилированная","бутыль для кулера","Расходные материалы",1,"бутыль",1]
[3,"Стаканы для воды","критически важные характеристики позиции отсутствуют","Расходные материалы",50,"шт",50]
["1. Зона для работ предусмотренных в вариативных модулях В и Г  (6 рабочих мест) "]
["Рабочее место Конкурсанта (дополнительное оборудование, инструмент для выполнения модуля (по количеству рабочих мест)"]
["Требования к обеспечению зоны (коммуникации, площадь, сети, количество рабочих мест и др.): "]
["Площадь зоны: не менее ____  кв.м. "]
["Освещение: Допустимо верхнее искусственное освещение ( не менее 300 люкс)"]
["Интернет : Подключение  ноутбуков к беспроводному интернету (с возможностью подключения к проводному интернету) \t"]
["Электричество: число подключений к сети  по (220 Вольт и 380 Вольт)\t соответствует количеству участников"]
["Контур заземления для электропитания и сети слаботочных подключений (при необходимости) : не требуется"]
["Покрытие пола: ковролин, паркетное, плиточное покрытие, ламинат или линолеум"]
["Подведение/ отведение ГХВС (при необходимости) : не требуется"]
["Подведение сжатого воздуха (при необходимости): не требуется"]
["№","Наименование ","Краткие (рамочные) технические характеристики","Вид","Количество","Единица измерения","Итоговое количество","Рекомендации представителей индустрии (указывается конкретное оборудование)"]
[null,"Отдельной зоны для выполнения задания не требуется. "]

{"sheet":"Расходные материалы","index":3,"n_rows":35,"n_cols":8,"rows_kept":35,"merged":[[0,0,0,7],[1,0,1,7],[2,0,2,7],[3,0,3,7],[4,0,4,7],[5,0,5,7],[6,0,6,7],[7,0,7,7],[8,0,8,7],[9,0,9,1],[9,2,9,7],[10,0,10,7],[11,0,11,7],[12,0,12,7],[22,0,22,7],[31,0,31,7],[32,0,32,7]]}
["Инфраструктурный лист для оснащения конкурсной площадки Чемпионата (Региональный этап)\nБанковское дело"]
["Основная информация о конкурсной площадке:"]
["Субъект Российской Федерации: Республика Карелия"]
["Базовая организация расположения конкурсной площадки: Частное профессиональное образовательное учреждение Петрозаводский кооперативный техникум Карелреспотребсоюза"]
["Адрес базовой организации: г. Петрозаводск, пр. Первомайский, 1а"]
["Главный эксперт: Воронецкая Любовь Алексеевна, 89214506232, vorolyubov@yandex.ru"]
["Технический эксперт: Шидерская Ольга Сергеевна, 89217021379, olgashiderskaya@gmail.com"]
["Количество экспертов (в том числе с главным экспертом): 9"]
["Количество конкурсантов (команд): 6"]
["Количество рабочих мест: 6"]
["Даты проведения: 16.02.2026-20.02.2026"]
["1. Зона для работ предусмотренных в Модулях обязательных к выполнению (инвариант)  (по количеству конкурсантов) "]
["Рабочее место Конкурсанта (расходные материалы по количеству конкурсантов)"]
["№","Наименование ","Краткие (рамочные) технические характеристики","Вид","Количество","Единица измерения","Итоговое количество","Рекомендации представителей индустрии (указывается конкретное оборудование)"]
[1,"Лоток для бумаги","формат А4","Расходные материалы",1,"шт ( на 1 конкурсанта) ",6]
[2,"Ручка шариковая","с синей пастой","Расходные материалы",2,"шт ( на 1 конкурсанта) ",12]
[2,"Степлер канцелярский","Материал корпуса пластик, № 24/6, № 26/6","Расходные материалы",1,"шт ( на 1 конкурсанта) ",6]
[4,"Скобы к степлеру"," размер скоб № 24/6, № 26/6","Расходные материалы",1,"шт ( на 1 конкурсанта) ",6]
[5,"Файл А4","формат А4, материал: пластик","Расходные материалы",15,"шт ( на 1 конкурсанта) ",{"$f":"15*6","v":90}]
[6,"Ножницы канцелярские","офисные с закругленными концами, длина 185 мм","Расходные материалы",1,"шт ( на 1 конкурсанта) ",6]
[7,"Бумага А4","формат А4, белая","Расходные материалы",0.5,"пачка ( на 1 конкурсанта) ",3]
[8,"Папка-скоросшиватель","формат А4, назначение: для документов, материал: картон","Расходные материалы",4,"шт ( на 1 конкурсанта) ",24]
["Расходные материалы на всех конкурсантов и экспертов"]
["№","Наименование ","Краткие (рамочные) технические характеристики","Вид","Количество","Единица измерения","Итоговое количество","Рекомендации представителей индустрии (указывается конкретное оборудование)"]
[1,"Ручки","с синей пастой","Расходные материалы",1,"шт",{"$f":"E25","v":1}]
[2,"Степлер канцелярский","материал корпуса пластик, № 24/6, № 26/6","Расходные материалы",5,"шт",6]
[3,"Скобы к степлеру"," размер скоб № 24/6, № 26/6","Расходные материалы",5,"шт",6]
[4,"Бумага","формат А4, белая","Расходные материалы",5,"пачек",6]
[5,"Файл А4","формат А4, материал: пластик","Расходные материалы",50,"шт",50]
[6,"Картридж для МФУ","по характеристике МФУ","Расходные материалы",1,"шт",1]
[7,"Папка-регистратор","Папка-регистратор  с двумя арочными механизмами  для хранения документов в большом количестве. Формат А4, из плотного картона.","Расходные материалы",1,"шт",{"$f":"E31","v":1}]
["1. Зона для работ предусмотренных в вариативных модулях В и Г (по количеству конкурсантов) "]
["Рабочее место Конкурсанта (расходные материалы по количеству конкурсантов)"]
["№","Наименование ","Краткие (рамочные) технические характеристики","Вид","Количество","Единица измерения","Итоговое количество","Рекомендации представителей индустрии (указывается конкретное оборудование)"]
[null,"Отдельная зона не выделяется. "]

{"sheet":"Личный инструмент участника","index":4,"n_rows":4,"n_cols":7,"rows_kept":4,"merged":[[0,0,0,6],[1,0,1,6]]}
["Инфраструктурный лист для оснащения конкурсной площадки Чемпионата (Региональный этап)\nБанковское дело"]
["Личный инструмент конкурсанта"]
["№","Наименование ","Краткие (рамочные) технические характеристики","Вид","Количество","Единица измерения","Примечание "]
[1,"Не предусмотрено"]